{"text_format":"1","workbook":"xlsx","n_sheets":7,"sheets":["鳥類基準値算定シート","水稲単一食シナリオ","果実単一食シナリオ","種子単一食シナリオ","昆虫単一食シナリオ","田面水シナリオ","入力規則"],"not_rendered":{"charts":0,"images":0,"macros":1,"external_links":0,"defined_names":7,"comments":1,"pivot_tables":0},"unopened":[],"bounds":{"document_bytes":16777216,"sheet_cells":100000,"rows_first":2000,"rows_last":500,"rows_between":2000,"halvings":0,"cell_chars":16384,"cell_head_chars":4096},"cells_cut":0,"cells_raw":0,"read":"whole","date_system":"1900"}

{"sheet":"鳥類基準値算定シート","index":0,"n_rows":17,"n_cols":11,"rows_kept":17,"cut":false,"hidden":false,"merged":[[3,2,3,5]]}
[null,"鳥類基準値算定シート"]
[]
["1. 化合物 (有効成分名）：",null,null,null,null,null,null,null,null,null,"のセルは入力要求項目"]
[null,null,null,null,null,null,null,null,null,null,"のセルは任意（試験・該当があれば入力）"]
[null,null,null,null,null,null,null,null,null,null,"のセルは計算結果 (変更不可）"]
["2. 鳥類急性経口毒性"]
[null,"鳥種","LD50注１",null,"平均体重(g)注２",null,"標準体重の使用注3","LD50 Adj."]
[null,"ウズラ　（ニホンウズラ）",null,"mg/kg-b.w.",null,"g",null,{"$f":"IF(C8=0,\" \",IF(G8=\"\",C8*(22/E8)^0.151,(C8*(22/E8)^0.151)/1.2))","v":" "},"mg/kg-b.w.","*注1: １鳥種で複数試験成績がある場合、＝GEOMEAN(数値,数値….) と関数で入力すること"]
[null,"ボブホワイト (コリン）ウズラ",null,"mg/kg-b.w.",null,"g",null,{"$f":"IF(C9=0,\" \",IF(G9=\"\",C9*(22/E9)^0.151,(C9*(22/E9)^0.151)/1.2))","v":" "},"mg/kg-b.w.","*注2: 被験物質投与前の各供試鳥の個別体重の算術平均値を入力すること"]
[null,"マガモ",null,"mg/kg-b.w.",null,"g",null,{"$f":"IF(C10=0,\" \",IF(G10=\"\",C10*(22/E10)^0.151,(C10*(22/E10)^0.151)/1.2))","v":" "},"mg/kg-b.w.","*注3: 標準体重（ウズラ120g、コリンウズラ178g、マガモ1,580g）を平均体重の代わりに用いる場合は、有 を記入すること"]
[null,"その他鳥種１",null,"mg/kg-b.w.",null,"g",null,{"$f":"IF(C11=0,\" \",C11*(22/E11)^0.151)","v":" "},"mg/kg-b.w.","　なお、次の①～②すべてを満たさない時は選択不可"]
[null,"その他鳥種２",null,"mg/kg-b.w.",null,"g",null,{"$f":"IF(C12=0,\" \",C12*(22/E12)^0.151)","v":" "},"mg/kg-b.w.","　①供試鳥種がウズラ、コリンウズラ、マガモのいずれかであること"]
[null,"その他鳥種３",null,"mg/kg-b.w.",null,"g",null,{"$f":"IF(C13=0,\" \",C13*(22/E13)^0.151)","v":" "},"mg/kg-b.w.","　②供試鳥の個別体重が不明であることの理由書を環境省に提出し、鳥類登録基準設定検討会において、"]
[null,null,null,null,null,null,null,null,null,"　　標準体重の使用はやむを得ないと認められること"]
[null,"LD50 Adj.",{"$f":"IF(ISERR(GEOMEAN(H8:H13)),\" \",IF(GEOMEAN(H8:H13)<10*MIN(H8:H13),GEOMEAN(H8:H13),MIN(H8:H13)))","v":" "},"mg/kg-b.w."]
[null,"LD50 Adj.（有効数字3桁）",{"$f":"IF(ISERR(GEOMEAN(H8:H13)),\" \",ROUNDDOWN(C15,2-INT(LOG(C15))))","v":" "},null,"不確実係数",{"$f":"IF(ISERR(GEOMEAN(H8:H13)),\" \",IF(GEOMEAN(H8:H13)<10*MIN(H8:H13),10,1))","v":" "}]
[null,"鳥類基準値（計算結果）注４",{"$f":"IF(C16=\" \",\" \",ROUNDDOWN(C16/F16,1-INT(LOG(C16/F16))))","v":" "},"mg/kg-b.w.",null,null,null,null,null,"*注4:有効桁数に合わせて表示桁数を調整すること "]

{"sheet":"水稲単一食シナリオ","index":1,"n_rows":21,"n_cols":11,"rows_kept":21,"cut":false,"hidden":false,"merged":[[3,4,3,5]]}
["鳥類予測ばく露量算定シート（水稲単一食シナリオ）"]
[null,null,null,null,null,null,null,null,null,null,"のセルは入力要求項目"]
["１．最大散布量となる農薬の使用方法",null,null,null,null,null,null,null,null,null,"のセルは任意（試験があれば入力）"]
[null,"製剤名","有効成分濃度",null,"有効成分の散布量注１",null,"最大散布回数",null,null,null,"のセルは計算結果 (変更不可）"]
[null,null,null,"％",null,"(kg-a.i./ha)",null,"回",null,"*注1: 単回散布当たりの１ha当たりの有効成分の散布量を計算して入力すること"]
[]
["２．初期評価における予測ばく露量"]
[null,"単位散布量",{"$f":"IF(ISBLANK(E5),\" \",E5)","v":" "},"(kg-a.i./ha)"]
[null,"RUD",7.33,"(mg-a.i./kg-diet)/(kg-a.i./ha)"]
[null,"複数回散布係数",{"$f":"IF(ISBLANK(G5),\"\",IF(G5=1,1,IF(G5=2,1.4,IF(G5=3,1.6,IF(G5=4,1.8,IF(G5=5,1.9,IF(G5=6,1.9,IF(G5=7,1.9,IF(G5=8,1.9,2)))))))))","v":""},"(-)",null,null,null,null,null,"*注２: 水稲単一食シナリオにおける基本的な生育日数は、移植期から出穂期を40 日間、出穂期から収穫期を70 日間とし、"]
[null,null,null,null,null,null,null,null,null,"         出穂期から穂揃期は７日間未満とする。"]
[null,"推定残留濃度",{"$f":"IF(OR(ISBLANK(E5),ISBLANK(G5)),\"\",C8*C9*C10)","v":""},"(mg-a.i./kg-diet)",null,null,null,null,null,"         散布間隔が定められていない農薬にあっては、散布間隔を７日間として、出穂後の散布回数を算定する。"]
[null,"予測ばく露量注２",{"$f":"IF(OR(ISBLANK(E5),ISBLANK(G5)),\"\",4.4*0.1*C12*0.001/0.022)","v":""},"(mg-a.i./day･kg-b.w.)",null,null,null,null,null,"*注３: セルが赤く表示される場合は、二次評価が必要。"]
[]
["３．二次評価における予測ばく露量"]
[null,"水稲に係る作物残留試験における被験物質の残留濃度注３",null,"(mg-a.i./kg-diet)",null,null,null,null,null,"*注４: 被験物質の水稲に係る作物残留試験の測定結果のうち、平均残留濃度が最大となる値を入力すること"]
[null,"作物残留試験における散布後経過日数",null,"日"]
[null,"作物残留試験における半減期",null,"日"]
[]
[null,"推定残留濃度",{"$f":"IF(OR(ISBLANK(C16),ISBLANK(C17)),\"\",IF(ISBLANK(C18),C16/((1/2)^(C17/10)),C16/((1/2)^(C17/C18))))","v":""},"(mg-a.i./kg-diet)"]
[null,"予測ばく露量注３",{"$f":"IF(OR(ISBLANK(C16),ISBLANK(C17)),\"\",4.4*0.1*C20*0.001/0.022)","v":""},"(mg-a.i./day･kg-b.w.)",null,null,null,null,null,"*注５: 有効桁数に合わせて表示桁数を調整すること "]

{"sheet":"果実単一食シナリオ","index":2,"n_rows":19,"n_cols":11,"rows_kept":19,"cut":false,"hidden":false,"merged":[[3,4,3,5]]}
["鳥類予測ばく露量算定シート（果実単一食シナリオ）"]
[null,null,null,null,null,null,null,null,null,null,"のセルは入力要求項目"]
["１．最大散布量となる農薬の使用方法",null,null,null,null,null,null,null,null,null,"のセルは任意（試験があれば入力）"]
[null,"製剤名","有効成分濃度",null,"有効成分の散布量注１",null,"最大散布回数",null,null,null,"のセルは計算結果 (変更不可）"]
[null,null,null,"％",null,"(kg-a.i./ha)",null,"回",null,"*注1: 単回散布当たりの１ha当たりの有効成分の散布量を計算して入力すること"]
[]
["２．初期評価における予測ばく露量"]
[null,"単位散布量",{"$f":"IF(ISBLANK(E5),\" \",E5)","v":" "},"(kg-a.i./ha)"]
[null,"RUD",1.63,"(mg-a.i./kg-diet)/(kg-a.i./ha)"]
[null,"複数回散布係数",{"$f":"IF(ISBLANK(G5),\"\",IF(G5=1,1,IF(G5=2,1.4,IF(G5=3,1.6,IF(G5=4,1.8,IF(G5=5,1.9,IF(G5=6,1.9,IF(G5=7,1.9,IF(G5=8,1.9,2)))))))))","v":""},"(-)",null,null,null,null,null,"*注２: 散布間隔が定められていない農薬にあっては、散布間隔を７日間として、収穫前21日からの散布回数を算定する。"]
[]
[null,"推定残留濃度",{"$f":"IF(OR(ISBLANK(E5),ISBLANK(G5)),\"\",C8*C9*C10)","v":""},"(mg-a.i./kg-diet)"]
[null,"予測ばく露量注２",{"$f":"IF(OR(ISBLANK(E5),ISBLANK(G5)),\"\",15*0.05*C12*0.001/0.022)","v":""},"(mg-a.i./day･kg-b.w.)",null,null,null,null,null,"*注３: セルが赤く表示される場合は、二次評価が必要。"]
[]
["３．二次評価における予測ばく露量"]
[null,"果実に係る作物残留試験における被験物質の収穫時の残留濃度注３",null,"(mg-a.i./kg-diet)",null,null,null,null,null,"*注４: 被験物質の果実に係る作物残留試験（露地栽培）で得られた収穫時の結果のうち、平均残留濃度が最大となる値を入力すること"]
[]
[null,"推定残留濃度",{"$f":"IF(ISBLANK(C16),\"\",C16)","v":""},"(mg-a.i./kg-diet)"]
[null,"予測ばく露量注４",{"$f":"IF(ISBLANK(C16),\"\",15*0.05*C16*0.001/0.022)","v":""},"(mg-a.i./day･kg-b.w.)",null,null,null,null,null,"*注５: 有効桁数に合わせて表示桁数を調整すること "]

{"sheet":"種子単一食シナリオ","index":3,"n_rows":21,"n_cols":10,"rows_kept":21,"cut":false,"hidden":false,"merged":[[3,4,3,5]]}
["鳥類予測ばく露量算定シート（種子単一食シナリオ）"]
[null,null,null,null,null,null,null,null,null,"のセルは入力要求項目"]
["１．最大散布量となる農薬の使用方法",null,null,null,null,null,null,null,null,"のセルは任意（試験があれば入力）"]
[null,"製剤名","有効成分濃度",null,"有効成分の使用量注１",null,"適用農作物注２",null,null,"のセルは計算結果 (変更不可）"]
[null,null,null,"％",null,"(kg-a.i./kg-seed)",null,null,"*注1: 単回使用当たりの種子１kg当たりの有効成分の使用量を計算して入力すること"]
[null,null,null,null,null,null,null,null,"*注2: 水稲とそれ以外の両方に適用がある場合は、予測ばく露量が最も高くなる適用農作物について算定すること"]
["２．初期評価における予測ばく露量"]
[null,"単位散布量",{"$f":"IF(ISBLANK(E5),\" \",E5)","v":" "},"(kg-a.i./kg-seed)"]
[null,"RUD",{"$f":"IF(ISBLANK(G5),\"\",IF(G5=\"豆類、とうもろこし及び野菜類\",0.06,0.006))","v":""},"(mg-a.i./kg-diet)/(kg-a.i./kg-seed)"]
[null,"餌のばく露割合",{"$f":"IF(ISBLANK(G5),\"\",IF(G5=\"豆類、とうもろこし及び野菜類\",0.05,0.1))","v":""},"(-)"]
[]
[null,"推定残留濃度",{"$f":"IF(OR(ISBLANK(E5),ISBLANK(G5)),\"\",C8*C9*1000000)","v":""},"(mg-a.i./kg-diet)"]
[null,"予測ばく露量注3",{"$f":"IF(OR(ISBLANK(E5),ISBLANK(G5)),\"\",4.4*C10*C8*C9*1000000*0.001/0.022)","v":""},"(mg-a.i./day･kg-b.w.)",null,null,null,null,"*注3: セルが赤く表示される場合は、二次評価が必要。"]
[]
["３．二次評価における予測ばく露量"]
[null,"出芽時の残留農薬濃度注4",null,"(mg-a.i./kg-seed)",null,null,null,null,"*注4: 水稲の場合はひげ根がない状態、水稲以外の場合はひげ根及び外皮がない状態で、実測した出芽時の残留農薬濃度"]
[null,"出芽時の種子重量注5",null,"(g-seed/粒）",null,null,null,null,"*注5: 水稲の場合はひげ根がない状態、水稲以外の場合はひげ根及び外皮がない状態における、出芽時の種子重量"]
[null,"処理前の種子重量注6",null,"(g-seed/粒）",null,null,null,null,"*注6: 農薬処理前の乾燥状態における種子重量"]
[]
[null,"推定残留濃度",{"$f":"IF(OR(ISBLANK(C16),ISBLANK(C17),ISBLANK(C18)),\"\",C16*C17/C18)","v":""},"(mg-a.i./kg-diet)"]
[null,"予測ばく露量注7",{"$f":"IF(OR(ISBLANK(C16),ISBLANK(C17),ISBLANK(C18)),\"\",4.4*C10*C20*0.001/0.022)","v":""},"(mg-a.i./day･kg-b.w.)",null,null,null,null,"*注7: 有効桁数に合わせて表示桁数を調整すること "]

{"sheet":"昆虫単一食シナリオ","index":4,"n_rows":46,"n_cols":20,"rows_kept":46,"cut":false,"hidden":false,"merged":[[3,4,3,5],[27,2,27,4],[27,5,27,6],[27,9,27,10],[27,7,27,8],[28,2,28,3],[29,2,29,3],[18,2,18,4],[19,2,19,3],[20,2,20,3]]}
["鳥類予測ばく露量算定シート（昆虫単一食シナリオ）"]
[null,null,null,null,null,null,null,null,null,null,null,null,null,null,"のセルは入力要求項目"]
["１．最大散布量となる農薬の使用方法",null,null,null,null,null,null,null,null,null,null,null,null,null,"のセルは任意（試験があれば入力）"]
[null,"製剤名","有効成分濃度",null,"有効成分の散布量注１,２",null,null,null,null,null,null,null,null,null,"のセルは計算結果 (変更不可）"]
["（水田）",null,null,"％",null,"(kg-a.i./ha)",null,null,null,null,null,null,null,"*注1: 単回散布当たりの１ha当たりの有効成分の散布量を計算して入力すること"]
["（非水田）",null,null,"％",null,"(kg-a.i./ha)",null,null,null,null,null,null,null,"*注2: 水田及び非水田において散布量が最大となる製剤をそれぞれ入力すること"]
[]
["２．初期評価における予測ばく露量"]
["（水田）","単位散布量",{"$f":"IF(ISBLANK(E5),\"\",E5)","v":""},"(kg-a.i./ha)"]
["（非水田）","単位散布量",{"$f":"IF(ISBLANK(E6),\"\",E6)","v":""},"(kg-a.i./ha)"]
[null,"RUD",2.19,"(mg-a.i./kg-diet)/(kg-a.i./ha)"]
[]
["（水田）","推定残留濃度",{"$f":"IF(ISNUMBER(E5),C9*C11,\"\")","v":""},"(mg-a.i./kg-diet)"]
["（非水田）","推定残留濃度",{"$f":"IF(ISNUMBER(E6),C10*C11,\"\")","v":""},"(mg-a.i./kg-diet)"]
[null,"予測ばく露量注3",{"$f":"IF(OR(ISNUMBER(E5),ISNUMBER(E6)),SUM(IF(ISNUMBER(E5),6.8*0.014*C13*0.001/0.022,0),IF(ISNUMBER(E6),6.8*0.011*C14*0.001/0.022,0)),\"\")","v":""},"(mg-a.i./day･kg-b.w.)",null,null,null,null,null,null,null,null,null,"*注3: セルが赤く表示される場合は、二次評価が必要。"]
[]
["３．二次評価における予測ばく露量"]
["①通常の使用方法に基づく場合"]
[null,"試験設計における作物栽培","土壌残留試験における評価対象農薬の散布直後の残留濃度"]
["（水田）",null,null,null,"(mg a.i./kg soil)"]
["（非水田）",null,null,null,"(mg a.i./kg soil)"]
[]
["（水田）","推定残留濃度",{"$f":"IF(ISNUMBER(C20),C20*IF(B20=\"有\",1,0.6),\"\")","v":""},"(mg-a.i./kg-diet)"]
["（非水田）","推定残留濃度",{"$f":"IF(ISNUMBER(C21),C21*IF(B21=\"有\",1,0.6),\"\")","v":""},"(mg-a.i./kg-diet)"]
[null,"予測ばく露量注4",{"$f":"IF(OR(ISNUMBER(C20),ISNUMBER(C21)),SUM(IF(ISNUMBER(C20),6.8*0.014*C23*0.001/0.022,0),IF(ISNUMBER(C21),6.8*0.011*C24*0.001/0.022,0)),\"\")","v":""},"(mg-a.i./day･kg-b.w.)",null,null,null,null,null,null,null,null,null,"*注４: 有効桁数に合わせて表示桁数を調整すること "]
[]
["②複数回の使用が認められる農薬について、２倍量を１回のみ処理した場合"]
[null,"試験設計における作物栽培","土壌残留試験における評価対象農薬の散布直後の残留濃度",null,null,"散布回数注5",null,"散布間隔の日数注5,6",null,"土壌残留試験で求められる土壌残留濃度の半減期注7",null,null,null,"*注５: 使用方法に定められた最大の散布回数及び最小の散布間隔を入力すること"]
["（水田）",null,null,null,"(mg a.i./kg soil)",null,"回",null,"日",null,"日",null,null,"*注６: 散布間隔について使用上の制限のない製剤については、空欄とすると散布間隔７日として計算が行われる。"]
["（非水田）",null,null,null,"(mg a.i./kg soil)",null,"回",null,"日",null,"日",null,null,"*注７: 土壌残留試験において土壌残留濃度の減衰が見られない農薬については、空欄とすると減衰なしとして計算が行われる。"]
[]
["（水田）","推定残留濃度",{"$f":"IF(ISNUMBER(C29),C29/2*VLOOKUP(F29,N37:O46,2,)*IF(B29=\"有\",1,0.6),\"\")","v":""},"(mg-a.i./kg-diet)"]
["（非水田）","推定残留濃度",{"$f":"IF(ISNUMBER(C30),C30/2*VLOOKUP(F30,R37:S46,2,)*IF(B30=\"有\",1,0.6),\"\")","v":""},"(mg-a.i./kg-diet)"]
[null,"予測ばく露量注4",{"$f":"IF(OR(ISNUMBER(C29),ISNUMBER(C30)),SUM(IF(ISNUMBER(C29),6.8*0.014*C32*0.001/0.022,0),IF(ISNUMBER(C30),6.8*0.011*C33*0.001/0.022,0)),\"\")","v":""},"(mg-a.i./day･kg-b.w.)"]
[]
[null,null,null,null,null,null,null,null,null,null,null,null,null,"n","Σ",null,null,"n","Σ"]
[null,null,null,null,null,null,null,null,null,null,null,null,null,1,{"$f":"P37","v":{"$error":"#DIV/0!"}},{"$f":"IF(ISNUMBER(H$29),0.5^((N37-1)*H$29/J$29),0.5^((N37-1)*7/J$29))","v":{"$error":"#DIV/0!"}},null,1,{"$f":"T37","v":{"$error":"#DIV/0!"}},{"$f":"IF(ISNUMBER(H$30),0.5^((R37-1)*H$30/J$30),0.5^((R37-1)*7/J$30))","v":{"$error":"#DIV/0!"}}]
[null,null,null,null,null,null,null,null,null,null,null,null,null,2,{"$f":"SUM(P37:P38)","v":{"$error":"#DIV/0!"}},{"$f":"IF(ISNUMBER(H$29),0.5^((N38-1)*H$29/J$29),0.5^((N38-1)*7/J$29))","v":{"$error":"#DIV/0!"}},null,2,{"$f":"SUM(T37:T38)","v":{"$error":"#DIV/0!"}},{"$f":"IF(ISNUMBER(H$30),0.5^((R38-1)*H$30/J$30),0.5^((R38-1)*7/J$30))","v":{"$error":"#DIV/0!"}}]
[null,null,null,null,null,null,null,null,null,null,null,null,null,3,{"$f":"SUM(P37:P39)","v":{"$error":"#DIV/0!"}},{"$error":"#DIV/0!"},null,3,{"$f":"SUM(T37:T39)","v":{"$error":"#DIV/0!"}},{"$error":"#DIV/0!"}]
[null,null,null,null,null,null,null,null,null,null,null,null,null,4,{"$f":"SUM(P37:P40)","v":{"$error":"#DIV/0!"}},{"$error":"#DIV/0!"},null,4,{"$f":"SUM(T37:T40)","v":{"$error":"#DIV/0!"}},{"$error":"#DIV/0!"}]
[null,null,null,null,null,null,null,null,null,null,null,null,null,5,{"$f":"SUM(P37:P41)","v":{"$error":"#DIV/0!"}},{"$error":"#DIV/0!"},null,5,{"$f":"SUM(T37:T41)","v":{"$error":"#DIV/0!"}},{"$error":"#DIV/0!"}]
[null,null,null,null,null,null,null,null,null,null,null,null,null,6,{"$f":"SUM(P37:P42)","v":{"$error":"#DIV/0!"}},{"$error":"#DIV/0!"},null,6,{"$f":"SUM(T37:T42)","v":{"$error":"#DIV/0!"}},{"$error":"#DIV/0!"}]
[null,null,null,null,null,null,null,null,null,null,null,null,null,7,{"$f":"SUM(P37:P43)","v":{"$error":"#DIV/0!"}},{"$error":"#DIV/0!"},null,7,{"$f":"SUM(T37:T43)","v":{"$error":"#DIV/0!"}},{"$error":"#DIV/0!"}]
[null,null,null,null,null,null,null,null,null,null,null,null,null,8,{"$f":"SUM(P37:P44)","v":{"$error":"#DIV/0!"}},{"$error":"#DIV/0!"},null,8,{"$f":"SUM(T37:T44)","v":{"$error":"#DIV/0!"}},{"$error":"#DIV/0!"}]
[null,null,null,null,null,null,null,null,null,null,null,null,null,9,{"$f":"SUM(P37:P45)","v":{"$error":"#DIV/0!"}},{"$error":"#DIV/0!"},null,9,{"$f":"SUM(T37:T45)","v":{"$error":"#DIV/0!"}},{"$error":"#DIV/0!"}]
[null,null,null,null,null,null,null,null,null,null,null,null,null,10,{"$f":"SUM(P37:P46)","v":{"$error":"#DIV/0!"}},{"$error":"#DIV/0!"},null,10,{"$f":"SUM(T37:T46)","v":{"$error":"#DIV/0!"}},{"$error":"#DIV/0!"}]

{"sheet":"田面水シナリオ","index":5,"n_rows":15,"n_cols":9,"rows_kept":15,"cut":false,"hidden":false,"merged":[[3,4,3,5]]}
["鳥類予測ばく露量算定シート（田面水シナリオ）"]
[null,null,null,null,null,null,null,null,"のセルは入力要求項目"]
["１．最大散布量となる農薬の使用方法",null,null,null,null,null,null,null,"のセルは任意（試験があれば入力）"]
[null,"製剤名","有効成分濃度",null,"有効成分の散布量注１",null,null,null,"のセルは計算結果 (変更不可）"]
[null,null,null,"％",null,"(kg-a.i./ha)",null,"*注1: 単回散布当たりの１ha当たりの有効成分の散布量を計算して入力すること"]
[]
["２．初期評価における予測ばく露量"]
[null,"推定残留濃度",{"$f":"IF(ISBLANK(E5),\"\",E5/0.5)","v":""},"(mg-a.i./L-diet)"]
[null,"予測ばく露量注2",{"$f":"IF(ISBLANK(E5),\"\",3*0.1*C8*0.001/0.022)","v":""},"(mg-a.i./day･kg-b.w.)",null,null,null,"*注２: セルが赤く表示される場合は、二次評価が必要。"]
[]
["３．二次評価における予測ばく露量"]
[null,"水質汚濁性試験で測定された田面水濃度注3",null,"(mg-a.i./L)",null,null,null,"*注３:施用直後又は１日後のうち、いずれか高い方の値を入力すること"]
[]
[null,"推定残留濃度",{"$f":"IF(ISBLANK(C12),\"\",C12)","v":""},"(mg-a.i./L-diet)"]
[null,"予測ばく露量注4",{"$f":"IF(ISBLANK(C12),\"\",3*0.1*C12*0.001/0.022)","v":""},"(mg-a.i./day･kg-b.w.)",null,null,null,"*注４: 有効桁数に合わせて表示桁数を調整すること "]

{"sheet":"入力規則","index":6,"n_rows":5,"n_cols":3,"rows_kept":5,"cut":false,"hidden":false,"merged":[]}
["豆類、とうもろこし及び野菜類"]
["直播水稲"]
[]
["有"]
["無",null,"有"]